[Event "Late-Titled-Tuesday-Blitz-March-19-2024"]
[Site "Chess.com"]
[Date "2024.03.19"]
[Round "4"]
[White "stolencandy13"]
[Black "kleber2007"]
[Result "1-0"]
[WhiteElo "2555"]
[BlackElo "2484"]
[TimeControl "180+1"]
[EndTime "14:37:52 PDT"]
[Termination "stolencandy13 won by checkmate"]

1. d4 {[%clk 0:03:00.9]} 1... Nf6 {[%clk 0:02:57.6]} 2. Bf4 {[%clk 0:03:01.3]}
2... d5 {[%clk 0:02:56.9]} 3. e3 {[%clk 0:03:01.4]} 3... e6 {[%clk 0:02:57.1]}
4. Bd3 {[%clk 0:03:01.3]} 4... Bd6 {[%clk 0:02:57.5]} 5. Bg3 {[%clk 0:03:01.6]}
5... c5 {[%clk 0:02:57.2]} 6. c3 {[%clk 0:03:01.5]} 6... Qc7 {[%clk 0:02:56.9]}
7. f4 {[%clk 0:03:00.6]} 7... b6 {[%clk 0:02:54.5]} 8. Nf3 {[%clk 0:03:01]} 8...
O-O {[%clk 0:02:51.8]} 9. Qe2 {[%clk 0:03:00.5]} 9... a5 {[%clk 0:02:50.9]} 10.
Nbd2 {[%clk 0:02:58.5]} 10... Ba6 {[%clk 0:02:50.3]} 11. Bxa6 {[%clk 0:02:57.3]}
11... Nxa6 {[%clk 0:02:46.3]} 12. O-O {[%clk 0:02:57.9]} 12... Qb7 {[%clk
0:02:35]} 13. Bh4 {[%clk 0:02:47.2]} 13... Ne4 {[%clk 0:02:34.1]} 14. Rad1
{[%clk 0:02:41.2]} 14... f5 {[%clk 0:02:28.5]} 15. Kh1 {[%clk 0:02:30.6]} 15...
b5 {[%clk 0:02:18.7]} 16. Rg1 {[%clk 0:02:27.1]} 16... b4 {[%clk 0:02:18.4]} 17.
Nxe4 {[%clk 0:02:24]} 17... fxe4 {[%clk 0:02:11.5]} 18. Ng5 {[%clk 0:02:23.9]}
18... Qd7 {[%clk 0:02:01.1]} 19. Qh5 {[%clk 0:01:54.5]} 19... h6 {[%clk
0:02:00.9]} 20. Nh3 {[%clk 0:01:52.9]} 20... Qf7 {[%clk 0:01:52.7]} 21. Qe2
{[%clk 0:01:51.3]} 21... Nc7 {[%clk 0:01:49.8]} 22. g4 {[%clk 0:01:49.6]} 22...
Rab8 {[%clk 0:01:46.4]} 23. g5 {[%clk 0:01:48.2]} 23... Kh8 {[%clk 0:01:38.6]}
24. gxh6 {[%clk 0:01:45.2]} 24... gxh6 {[%clk 0:01:38.4]} 25. Bg5 {[%clk
0:00:55.3]} 25... Qh7 {[%clk 0:01:29.1]} 26. Rg4 {[%clk 0:00:46.8]} 26... Be7
{[%clk 0:01:05.5]} 27. Bxe7 {[%clk 0:00:40.6]} 27... Qxe7 {[%clk 0:01:03.3]} 28.
Rg6 {[%clk 0:00:32.4]} 28... Rf6 {[%clk 0:01:01.3]} 29. Rdg1 {[%clk 0:00:26.1]}
29... Qf7 {[%clk 0:00:55.9]} 30. Qh5 {[%clk 0:00:22.6]} 30... Rxg6 {[%clk
0:00:48.7]} 31. Rxg6 {[%clk 0:00:21.6]} 31... Qh7 {[%clk 0:00:43.6]} 32. Rxh6
{[%clk 0:00:21.5]} 32... Qxh6 {[%clk 0:00:43.2]} 33. Qxh6+ {[%clk 0:00:22.4]}
33... Kg8 {[%clk 0:00:43.8]} 34. Ng5 {[%clk 0:00:23]} 34... bxc3 {[%clk
0:00:41.2]} 35. Qh7+ {[%clk 0:00:22.6]} 35... Kf8 {[%clk 0:00:41.2]} 36. Qf7#
{[%clk 0:00:23.3]} 1-0

[Event "Late-Titled-Tuesday-Blitz-March-19-2024"]
[Site "Chess.com"]
[Date "2024.03.19"]
[Round "4"]
[White "katharinareinecke"]
[Black "cristiano78"]
[Result "1-0"]
[WhiteElo "1990"]
[BlackElo "2254"]
[TimeControl "180+1"]
[EndTime "14:37:54 PDT"]
[Termination "katharinareinecke won by resignation"]

1. d4 {[%clk 0:03:00.9]} 1... Nf6 {[%clk 0:02:58.7]} 2. c4 {[%clk 0:02:53.4]}
2... g6 {[%clk 0:02:54]} 3. Nf3 {[%clk 0:02:52.4]} 3... Bg7 {[%clk 0:02:53.5]}
4. g3 {[%clk 0:02:50.8]} 4... d6 {[%clk 0:02:53.1]} 5. Bg2 {[%clk 0:02:50.7]}
5... O-O {[%clk 0:02:53]} 6. O-O {[%clk 0:02:50.6]} 6... Nc6 {[%clk 0:02:52.9]}
7. Nc3 {[%clk 0:02:49.6]} 7... Bf5 {[%clk 0:02:52.7]} 8. Nh4 {[%clk 0:02:43.8]}
8... Bd7 {[%clk 0:02:52.2]} 9. e4 {[%clk 0:02:40]} 9... e5 {[%clk 0:02:51.5]}
10. d5 {[%clk 0:02:32.1]} 10... Nd4 {[%clk 0:02:51.4]} 11. Nf3 {[%clk
0:02:23.6]} 11... Bg4 {[%clk 0:02:49.9]} 12. h3 {[%clk 0:02:18.4]} 12... Nxf3+
{[%clk 0:02:47.2]} 13. Bxf3 {[%clk 0:02:14.7]} 13... Bxh3 {[%clk 0:02:47.4]} 14.
Re1 {[%clk 0:02:11.6]} 14... Nd7 {[%clk 0:02:44.7]} 15. Kh2 {[%clk 0:01:58.6]}
15... f5 {[%clk 0:02:27.5]} 16. Kxh3 {[%clk 0:01:54.6]} 16... fxe4 {[%clk
0:02:27.4]} 17. Nxe4 {[%clk 0:01:49.2]} 17... Nf6 {[%clk 0:02:24.6]} 18. Nxf6+
{[%clk 0:01:35.7]} 18... Qxf6 {[%clk 0:02:23.3]} 19. Kg2 {[%clk 0:01:19.6]}
19... Rae8 {[%clk 0:02:17.8]} 20. Be3 {[%clk 0:01:17.3]} 20... e4 {[%clk
0:02:17.6]} 21. Bg4 {[%clk 0:01:10.8]} 21... b6 {[%clk 0:02:15.3]} 22. Be6+
{[%clk 0:01:08.3]} 22... Kh8 {[%clk 0:02:15.3]} 23. Rb1 {[%clk 0:01:04.7]} 23...
g5 {[%clk 0:02:11.6]} 24. b3 {[%clk 0:01:02.2]} 24... h6 {[%clk 0:02:11.2]} 25.
Qe2 {[%clk 0:00:58.2]} 25... Qf3+ {[%clk 0:02:07.6]} 26. Qxf3 {[%clk 0:00:57.5]}
26... exf3+ {[%clk 0:02:07.2]} 27. Kh2 {[%clk 0:00:53.6]} 27... Be5 {[%clk
0:02:06.8]} 28. Rh1 {[%clk 0:00:46.7]} 28... Kg7 {[%clk 0:02:06.6]} 29. Kg1
{[%clk 0:00:45.4]} 29... Rf6 {[%clk 0:02:02.6]} 30. Rd1 {[%clk 0:00:44.6]} 30...
c5 {[%clk 0:01:57.2]} 31. Bd2 {[%clk 0:00:38.1]} 31... Bd4 {[%clk 0:01:51.6]}
32. Rc1 {[%clk 0:00:34.4]} 32... Kg6 {[%clk 0:01:47.4]} 33. Bc3 {[%clk
0:00:34.5]} 33... Bxc3 {[%clk 0:01:44.8]} 34. Rxc3 {[%clk 0:00:35.4]} 34... h5
{[%clk 0:01:44.2]} 35. Re3 {[%clk 0:00:32.9]} 35... g4 {[%clk 0:01:30.3]} 36.
Bf5+ {[%clk 0:00:29.7]} 36... Kf7 {[%clk 0:01:22.1]} 37. Rxe8 {[%clk 0:00:29.6]}
37... Rxf5 {[%clk 0:01:18]} 38. Re6 {[%clk 0:00:25.9]} 38... Kg7 {[%clk
0:00:57.1]} 39. Kh2 {[%clk 0:00:24.9]} 1-0

[Event "Late-Titled-Tuesday-Blitz-March-19-2024"]
[Site "Chess.com"]
[Date "2024.03.19"]
[Round "4"]
[White "FredddieCroderg"]
[Black "LikeWater"]
[Result "1-0"]
[WhiteElo "2293"]
[BlackElo "2640"]
[TimeControl "180+1"]
[EndTime "14:37:59 PDT"]
[Termination "FredddieCroderg won by resignation"]

1. e4 {[%clk 0:03:00.9]} 1... g6 {[%clk 0:03:00.2]} 2. h4 {[%clk 0:02:58.8]}
2... d6 {[%clk 0:03:01.1]} 3. h5 {[%clk 0:02:58.9]} 3... Bg7 {[%clk 0:03:00.5]}
4. d4 {[%clk 0:02:57.6]} 4... Nc6 {[%clk 0:03:00.7]} 5. c3 {[%clk 0:02:56.5]}
5... e5 {[%clk 0:02:58]} 6. d5 {[%clk 0:02:55.5]} 6... Nce7 {[%clk 0:02:57.6]}
7. Bb5+ {[%clk 0:02:47.5]} 7... c6 {[%clk 0:02:57.3]} 8. Ba4 {[%clk 0:02:46.1]}
8... b5 {[%clk 0:02:46.2]} 9. Bb3 {[%clk 0:02:41.9]} 9... cxd5 {[%clk
0:02:45.3]} 10. h6 {[%clk 0:02:31.5]} 10... Bf8 {[%clk 0:02:43.1]} 11. Bxd5
{[%clk 0:02:28.9]} 11... Nxd5 {[%clk 0:02:41.3]} 12. Qxd5 {[%clk 0:02:28.4]}
12... Rb8 {[%clk 0:02:41.8]} 13. Nf3 {[%clk 0:02:22.8]} 13... Nf6 {[%clk
0:02:40.7]} 14. Qd3 {[%clk 0:02:20.6]} 14... Be7 {[%clk 0:02:40.1]} 15. Bg5
{[%clk 0:02:16.6]} 15... O-O {[%clk 0:02:39.4]} 16. Bxf6 {[%clk 0:02:15.4]}
16... Bxf6 {[%clk 0:02:40.3]} 17. Nbd2 {[%clk 0:02:12.4]} 17... Bb7 {[%clk
0:02:38]} 18. Rd1 {[%clk 0:02:04.5]} 18... d5 {[%clk 0:02:37.7]} 19. exd5 {[%clk
0:02:02.4]} 19... Qxd5 {[%clk 0:02:38.6]} 20. Qxd5 {[%clk 0:01:53.4]} 20... Bxd5
{[%clk 0:02:39.3]} 21. O-O {[%clk 0:01:42]} 21... e4 {[%clk 0:02:30.1]} 22. Nh2
{[%clk 0:01:34.6]} 22... Rfe8 {[%clk 0:02:28.8]} 23. Nb3 {[%clk 0:01:28.3]}
23... Bc4 {[%clk 0:02:25.1]} 24. Rfe1 {[%clk 0:01:26.6]} 24... Bg5 {[%clk
0:02:26]} 25. Ng4 {[%clk 0:01:12.3]} 25... f5 {[%clk 0:02:25.6]} 26. Ne3 {[%clk
0:00:59.2]} 26... Bd3 {[%clk 0:02:25.8]} 27. Nd5 {[%clk 0:00:54.1]} 27... Rbd8
{[%clk 0:02:23.6]} 28. Nc7 {[%clk 0:00:52.2]} 28... Re7 {[%clk 0:02:23.5]} 29.
Nxb5 {[%clk 0:00:50.5]} 29... Red7 {[%clk 0:02:23.5]} 30. N5d4 {[%clk
0:00:42.7]} 30... Bxh6 {[%clk 0:02:23.3]} 31. f3 {[%clk 0:00:35.4]} 31... Bg7
{[%clk 0:02:20.5]} 32. fxe4 {[%clk 0:00:34.4]} 32... fxe4 {[%clk 0:02:20.1]} 33.
Ne6 {[%clk 0:00:32.5]} 33... Re8 {[%clk 0:02:19.1]} 34. Nxg7 {[%clk 0:00:32.4]}
34... Kxg7 {[%clk 0:02:20]} 35. Nc5 {[%clk 0:00:32.4]} 35... Rde7 {[%clk
0:02:00]} 36. Nxd3 {[%clk 0:00:32.1]} 36... exd3 {[%clk 0:02:00.9]} 37. Rxe7+
{[%clk 0:00:32.2]} 37... Rxe7 {[%clk 0:02:01.8]} 38. Rd2 {[%clk 0:00:28.5]}
38... Re2 {[%clk 0:02:02.7]} 39. Rxe2 {[%clk 0:00:27.6]} 39... dxe2 {[%clk
0:02:03.6]} 40. Kf2 {[%clk 0:00:27.7]} 40... h5 {[%clk 0:02:03.7]} 41. Kxe2
{[%clk 0:00:27.8]} 41... g5 {[%clk 0:02:04.6]} 42. Kf3 {[%clk 0:00:27.9]} 42...
Kf6 {[%clk 0:02:04.8]} 43. Ke4 {[%clk 0:00:27.9]} 43... h4 {[%clk 0:02:04.7]}
44. c4 {[%clk 0:00:27.3]} 44... Ke6 {[%clk 0:02:04.8]} 45. b4 {[%clk 0:00:26.2]}
45... a6 {[%clk 0:02:05]} 46. c5 {[%clk 0:00:25.8]} 46... g4 {[%clk 0:02:00.7]}
47. Kf4 {[%clk 0:00:23.8]} 47... h3 {[%clk 0:02:00.2]} 48. gxh3 {[%clk
0:00:23.6]} 48... gxh3 {[%clk 0:02:01.1]} 49. Kg3 {[%clk 0:00:23.6]} 49... Kd5
{[%clk 0:02:01.5]} 50. Kxh3 {[%clk 0:00:23.6]} 50... a5 {[%clk 0:02:02.4]} 51.
a3 {[%clk 0:00:22.4]} 51... a4 {[%clk 0:02:02.5]} 52. Kg4 {[%clk 0:00:21.2]}
52... Kc4 {[%clk 0:02:02.8]} 53. c6 {[%clk 0:00:21.3]} 53... Kb3 {[%clk
0:02:02]} 54. c7 {[%clk 0:00:21]} 54... Kxa3 {[%clk 0:02:02.9]} 55. c8=Q {[%clk
0:00:20.8]} 55... Kxb4 {[%clk 0:02:02.9]} 56. Qb8+ {[%clk 0:00:19.5]} 56... Kc3
{[%clk 0:02:03.2]} 57. Qc7+ {[%clk 0:00:19.1]} 57... Kb2 {[%clk 0:02:03.2]} 58.
Qb6+ {[%clk 0:00:18.8]} 58... Ka2 {[%clk 0:02:03.5]} 59. Kf4 {[%clk 0:00:15.1]}
59... a3 {[%clk 0:02:03.8]} 60. Qb4 {[%clk 0:00:14.7]} 60... Ka1 {[%clk
0:02:03.9]} 61. Qxa3+ {[%clk 0:00:14.8]} 1-0

[Event "Late-Titled-Tuesday-Blitz-March-19-2024"]
[Site "Chess.com"]
[Date "2024.03.19"]
[Round "4"]
[White "Mr_Heisenberg13"]
[Black "Bugcrusher"]
[Result "1-0"]
[WhiteElo "2924"]
[BlackElo "2479"]
[TimeControl "180+1"]
[EndTime "14:38:00 PDT"]
[Termination "Mr_Heisenberg13 won by resignation"]

1. e4 {[%clk 0:03:00.9]} 1... e6 {[%clk 0:02:58.5]} 2. Nf3 {[%clk 0:03:01.8]}
2... d5 {[%clk 0:02:58.6]} 3. exd5 {[%clk 0:03:01.2]} 3... exd5 {[%clk
0:02:58.4]} 4. d4 {[%clk 0:03:02.1]} 4... Nc6 {[%clk 0:02:57.1]} 5. Bb5 {[%clk
0:03:01.8]} 5... Bd6 {[%clk 0:02:56.7]} 6. c4 {[%clk 0:03:02.4]} 6... dxc4
{[%clk 0:02:57]} 7. d5 {[%clk 0:03:02.9]} 7... a6 {[%clk 0:02:57.6]} 8. Ba4
{[%clk 0:03:03.1]} 8... b5 {[%clk 0:02:58]} 9. dxc6 {[%clk 0:03:03.3]} 9... bxa4
{[%clk 0:02:58.3]} 10. O-O {[%clk 0:03:01.8]} 10... Ne7 {[%clk 0:02:58]} 11.
Nbd2 {[%clk 0:03:02.4]} 11... O-O {[%clk 0:02:52.9]} 12. Nxc4 {[%clk 0:03:01.7]}
12... Nxc6 {[%clk 0:02:50.6]} 13. Qxa4 {[%clk 0:03:00.2]} 13... Bd7 {[%clk
0:02:31.1]} 14. Nxd6 {[%clk 0:02:58.9]} 14... cxd6 {[%clk 0:02:30.6]} 15. Qf4
{[%clk 0:02:58.7]} 15... Be6 {[%clk 0:02:23.3]} 16. b3 {[%clk 0:02:55.8]} 16...
Qf6 {[%clk 0:02:09.8]} 17. Qxf6 {[%clk 0:02:54.2]} 17... gxf6 {[%clk 0:02:10.7]}
18. Bb2 {[%clk 0:02:53.3]} 18... Ne5 {[%clk 0:02:08.9]} 19. Nd4 {[%clk
0:02:50.9]} 19... Rac8 {[%clk 0:02:05.4]} 20. Rad1 {[%clk 0:02:50.3]} 20... a5
{[%clk 0:01:54.1]} 21. Nxe6 {[%clk 0:02:46.7]} 21... fxe6 {[%clk 0:01:53.4]} 22.
Rxd6 {[%clk 0:02:47.4]} 22... Kf7 {[%clk 0:01:49.2]} 23. Rfd1 {[%clk 0:02:36.8]}
23... Rc2 {[%clk 0:01:47.5]} 24. R6d2 {[%clk 0:02:32.5]} 24... Rfc8 {[%clk
0:01:46.7]} 25. f3 {[%clk 0:02:28.7]} 25... a4 {[%clk 0:01:44.1]} 26. bxa4
{[%clk 0:02:26.1]} 26... Rxd2 {[%clk 0:01:42.8]} 27. Rxd2 {[%clk 0:02:27]} 27...
Rc4 {[%clk 0:01:37.3]} 28. a5 {[%clk 0:02:14.5]} 28... Ra4 {[%clk 0:01:34.7]}
29. Bc3 {[%clk 0:02:09.9]} 29... Nc4 {[%clk 0:01:32.2]} 30. Rd7+ {[%clk
0:02:09]} 30... Kg6 {[%clk 0:01:31.5]} 31. Rd4 {[%clk 0:02:07.6]} 31... e5
{[%clk 0:01:30.1]} 32. Rg4+ {[%clk 0:02:05.9]} 32... Kf7 {[%clk 0:01:26.9]} 33.
a6 {[%clk 0:02:01.3]} 33... f5 {[%clk 0:01:25]} 34. Rh4 {[%clk 0:02:01.7]} 34...
e4 {[%clk 0:01:23.6]} 35. fxe4 {[%clk 0:01:57.9]} 35... Ne3 {[%clk 0:01:20.9]}
36. Rxh7+ {[%clk 0:01:54.5]} 36... Kg6 {[%clk 0:01:21.1]} 37. Rg7+ {[%clk
0:01:54.5]} 37... Kh5 {[%clk 0:01:18.6]} 38. exf5 {[%clk 0:01:42.5]} 38... Rxa2
{[%clk 0:01:17.7]} 39. h3 {[%clk 0:01:36.6]} 39... Kh4 {[%clk 0:01:13.7]} 40.
Be1+ {[%clk 0:01:31]} 40... Kh5 {[%clk 0:01:14.1]} 41. a7 {[%clk 0:01:28.4]}
41... Ra1 {[%clk 0:01:10.1]} 42. Kf2 {[%clk 0:01:26.1]} 42... Nd5 {[%clk
0:01:06.8]} 43. Bd2 {[%clk 0:01:13.1]} 43... Ra2 {[%clk 0:01:03.2]} 44. Ke1
{[%clk 0:01:13.2]} 44... Ra1+ {[%clk 0:01:01]} 45. Ke2 {[%clk 0:01:13.5]} 45...
Ra2 {[%clk 0:01:01.5]} 46. Kd3 {[%clk 0:01:09.3]} 46... Kh4 {[%clk 0:00:56.7]}
47. f6 {[%clk 0:00:58.4]} 47... Ra3+ {[%clk 0:00:47.9]} 48. Kc4 {[%clk
0:00:56.3]} 48... Nxf6 {[%clk 0:00:46.1]} 49. Bg5+ {[%clk 0:00:54.8]} 49... Kh5
{[%clk 0:00:46.6]} 50. Bxf6 {[%clk 0:00:54.5]} 50... Kh6 {[%clk 0:00:47.4]} 51.
Bd4 {[%clk 0:00:49.7]} 1-0

[Event "Late-Titled-Tuesday-Blitz-March-19-2024"]
[Site "Chess.com"]
[Date "2024.03.19"]
[Round "4"]
[White "newyorkmouse"]
[Black "HandKnit"]
[Result "1-0"]
[WhiteElo "2655"]
[BlackElo "2479"]
[TimeControl "180+1"]
[EndTime "14:38:02 PDT"]
[Termination "newyorkmouse won by checkmate"]

1. b3 {[%clk 0:03:00.9]} 1... Nf6 {[%clk 0:02:55.4]} 2. a3 {[%clk 0:02:58.1]}
2... e5 {[%clk 0:02:53]} 3. Bb2 {[%clk 0:02:49.7]} 3... Nc6 {[%clk 0:02:51.5]}
4. d3 {[%clk 0:02:50.1]} 4... d5 {[%clk 0:02:51.3]} 5. e3 {[%clk 0:02:50.5]}
5... Bd6 {[%clk 0:02:50.9]} 6. Nd2 {[%clk 0:02:51.1]} 6... Be6 {[%clk 0:02:51]}
7. g3 {[%clk 0:02:51.6]} 7... O-O {[%clk 0:02:51]} 8. Bg2 {[%clk 0:02:52.2]}
8... Qd7 {[%clk 0:02:51]} 9. Ne2 {[%clk 0:02:52.7]} 9... Bh3 {[%clk 0:02:48.3]}
10. O-O {[%clk 0:02:52.3]} 10... Bxg2 {[%clk 0:02:47.9]} 11. Kxg2 {[%clk
0:02:53.2]} 11... Rae8 {[%clk 0:02:43.6]} 12. c4 {[%clk 0:02:51.2]} 12... Ne7
{[%clk 0:02:25.1]} 13. cxd5 {[%clk 0:02:49.5]} 13... Nfxd5 {[%clk 0:02:18]} 14.
Rc1 {[%clk 0:02:48.5]} 14... Ng6 {[%clk 0:02:15.9]} 15. Qc2 {[%clk 0:02:46.7]}
15... Kh8 {[%clk 0:02:12.9]} 16. Nc4 {[%clk 0:02:45.7]} 16... Rc8 {[%clk
0:02:05.9]} 17. d4 {[%clk 0:02:44.7]} 17... exd4 {[%clk 0:02:04.3]} 18. Nxd4
{[%clk 0:02:45.6]} 18... f6 {[%clk 0:01:36.2]} 19. Rfd1 {[%clk 0:02:42.5]} 19...
Nde7 {[%clk 0:01:23.9]} 20. h4 {[%clk 0:02:37.2]} 20... c5 {[%clk 0:01:13.1]}
21. Nf3 {[%clk 0:02:23.8]} 21... Rc6 {[%clk 0:01:05.2]} 22. h5 {[%clk
0:02:18.8]} 22... Ne5 {[%clk 0:01:05.2]} 23. Ncxe5 {[%clk 0:02:18.4]} 23... fxe5
{[%clk 0:01:06.1]} 24. Nxe5 {[%clk 0:02:18.2]} 24... Qc7 {[%clk 0:01:00.5]} 25.
Ng4 {[%clk 0:01:50.7]} 25... Nf5 {[%clk 0:00:42.3]} 26. h6 {[%clk 0:01:45.7]}
26... Bxg3 {[%clk 0:00:31.6]} 27. hxg7+ {[%clk 0:01:41.8]} 27... Nxg7 {[%clk
0:00:29.8]} 28. fxg3 {[%clk 0:01:42]} 28... Rg6 {[%clk 0:00:27.9]} 29. Ne5
{[%clk 0:01:41.9]} 29... Rg5 {[%clk 0:00:21.7]} 30. Rh1 {[%clk 0:01:34.3]} 30...
h5 {[%clk 0:00:15.1]} 31. Rcf1 {[%clk 0:01:05.4]} 31... Rxf1 {[%clk 0:00:07.3]}
32. Rxf1 {[%clk 0:01:06.3]} 32... Kg8 {[%clk 0:00:03.9]} 33. Qc4+ {[%clk
0:01:01.6]} 33... Kh7 {[%clk 0:00:04]} 34. Qe4+ {[%clk 0:01:00.2]} 34... Kg8
{[%clk 0:00:03.6]} 35. Qd5+ {[%clk 0:00:59.3]} 35... Kh7 {[%clk 0:00:03.3]} 36.
Rf8 {[%clk 0:00:58.1]} 36... Qe7 {[%clk 0:00:01.9]} 37. Qg8+ {[%clk 0:00:57.1]}
37... Kh6 {[%clk 0:00:01.9]} 38. Rf6+ {[%clk 0:00:58]} 38... Qxf6 {[%clk
0:00:01.5]} 39. Qh8# {[%clk 0:00:58.9]} 1-0

[Event "Late-Titled-Tuesday-Blitz-March-19-2024"]
[Site "Chess.com"]
[Date "2024.03.19"]
[Round "4"]
[White "miraitrunks"]
[Black "ThaBarWa"]
[Result "0-1"]
[WhiteElo "2166"]
[BlackElo "2343"]
[TimeControl "180+1"]
[EndTime "14:38:03 PDT"]
[Termination "ThaBarWa won by resignation"]

1. e4 {[%clk 0:03:00.9]} 1... c5 {[%clk 0:02:57.9]} 2. Nc3 {[%clk 0:02:59.1]}
2... Nc6 {[%clk 0:02:44.2]} 3. Nge2 {[%clk 0:02:58.7]} 3... e5 {[%clk
0:02:29.1]} 4. d3 {[%clk 0:02:53.5]} 4... d6 {[%clk 0:02:27.1]} 5. g3 {[%clk
0:02:52.9]} 5... g6 {[%clk 0:02:16.2]} 6. Bg2 {[%clk 0:02:48.2]} 6... Bg7 {[%clk
0:02:16.7]} 7. Be3 {[%clk 0:02:45]} 7... Nge7 {[%clk 0:02:15.3]} 8. O-O {[%clk
0:02:25.6]} 8... O-O {[%clk 0:02:14.8]} 9. f4 {[%clk 0:02:25.1]} 9... Rb8 {[%clk
0:02:09.1]} 10. a4 {[%clk 0:02:24.9]} 10... Nd4 {[%clk 0:02:07.2]} 11. fxe5
{[%clk 0:02:14.6]} 11... dxe5 {[%clk 0:02:05.6]} 12. h3 {[%clk 0:02:06.8]} 12...
Be6 {[%clk 0:02:03.4]} 13. a5 {[%clk 0:02:00.1]} 13... Qd7 {[%clk 0:02:02.9]}
14. Kh2 {[%clk 0:01:58]} 14... h5 {[%clk 0:02:00.8]} 15. Qd2 {[%clk 0:01:53]}
15... Kh7 {[%clk 0:01:42.9]} 16. Bg5 {[%clk 0:01:46]} 16... f6 {[%clk
0:01:42.3]} 17. Be3 {[%clk 0:01:45.1]} 17... g5 {[%clk 0:01:34.9]} 18. Rf2
{[%clk 0:01:42.6]} 18... Ng6 {[%clk 0:01:29.8]} 19. Raf1 {[%clk 0:01:31.3]}
19... h4 {[%clk 0:01:27.8]} 20. Nd5 {[%clk 0:01:22.3]} 20... hxg3+ {[%clk
0:01:23.6]} 21. Nxg3 {[%clk 0:01:20.2]} 21... Nf4 {[%clk 0:01:23.8]} 22. Bxf4
{[%clk 0:00:52.2]} 22... gxf4 {[%clk 0:01:23.5]} 23. Ne2 {[%clk 0:00:51.2]}
23... Rh8 {[%clk 0:01:18.5]} 24. Nxd4 {[%clk 0:00:50.3]} 24... cxd4 {[%clk
0:01:19.4]} 25. Qb4 {[%clk 0:00:38.6]} 25... Kg6 {[%clk 0:01:14.5]} 26. Rf3
{[%clk 0:00:15.3]} 26... Kf7 {[%clk 0:01:08.4]} 27. Rg1 {[%clk 0:00:11.2]} 27...
Rh6 {[%clk 0:01:01.3]} 28. Bf1 {[%clk 0:00:11]} 28... Rbh8 {[%clk 0:00:58.5]}
29. Qd2 {[%clk 0:00:06.2]} 29... Bxh3 {[%clk 0:00:54.3]} 30. Bxh3 {[%clk
0:00:05.9]} 30... Rxh3+ {[%clk 0:00:55.1]} 31. Kg2 {[%clk 0:00:06.4]} 31... Rh2+
{[%clk 0:00:52.2]} 0-1

[Event "Late-Titled-Tuesday-Blitz-March-19-2024"]
[Site "Chess.com"]
[Date "2024.03.19"]
[Round "4"]
[White "slorovel"]
[Black "GMKrikor"]
[Result "0-1"]
[WhiteElo "2599"]
[BlackElo "2820"]
[TimeControl "180+1"]
[EndTime "14:38:10 PDT"]
[Termination "GMKrikor won by resignation"]

1. e4 {[%clk 0:03:00.9]} 1... c5 {[%clk 0:02:55.9]} 2. Nf3 {[%clk 0:03:00.7]}
2... Nc6 {[%clk 0:02:54.9]} 3. Bb5 {[%clk 0:03:00.5]} 3... Nf6 {[%clk
0:02:54.3]} 4. Qe2 {[%clk 0:02:55.3]} 4... g6 {[%clk 0:02:30.7]} 5. O-O {[%clk
0:02:52.5]} 5... Bg7 {[%clk 0:02:30.1]} 6. c3 {[%clk 0:02:43.2]} 6... O-O {[%clk
0:02:05]} 7. d3 {[%clk 0:02:40.7]} 7... d6 {[%clk 0:02:01.8]} 8. a4 {[%clk
0:02:35.8]} 8... e5 {[%clk 0:02:01.7]} 9. Nbd2 {[%clk 0:02:29.9]} 9... h6 {[%clk
0:02:01.8]} 10. Rd1 {[%clk 0:02:22]} 10... Qc7 {[%clk 0:01:54.6]} 11. Nf1 {[%clk
0:02:21.3]} 11... Be6 {[%clk 0:01:51.5]} 12. Ne3 {[%clk 0:02:18.6]} 12... Rad8
{[%clk 0:01:48.1]} 13. h3 {[%clk 0:02:09.8]} 13... Rfe8 {[%clk 0:01:41.9]} 14.
Nd2 {[%clk 0:01:41.8]} 14... d5 {[%clk 0:01:34.6]} 15. exd5 {[%clk 0:01:23.3]}
15... Nxd5 {[%clk 0:01:35.5]} 16. Nxd5 {[%clk 0:01:23.4]} 16... Bxd5 {[%clk
0:01:34]} 17. Bc4 {[%clk 0:01:23.4]} 17... Qd7 {[%clk 0:01:26]} 18. Bxd5 {[%clk
0:01:19]} 18... Qxd5 {[%clk 0:01:25.8]} 19. Ne4 {[%clk 0:00:31.7]} 19... f5
{[%clk 0:00:59.8]} 20. c4 {[%clk 0:00:30.9]} 20... Nd4 {[%clk 0:01:00.2]} 21.
Qf1 {[%clk 0:00:23.1]} 21... Qc6 {[%clk 0:00:58.1]} 22. Nc3 {[%clk 0:00:23]}
22... Nc2 {[%clk 0:00:45.2]} 23. Rb1 {[%clk 0:00:19.8]} 23... Nb4 {[%clk
0:00:45.8]} 24. b3 {[%clk 0:00:16.5]} 24... e4 {[%clk 0:00:41]} 25. dxe4 {[%clk
0:00:08.5]} 25... Bxc3 {[%clk 0:00:37.5]} 26. Bxh6 {[%clk 0:00:03.7]} 26... Qxe4
{[%clk 0:00:29.2]} 27. Rxd8 {[%clk 0:00:03.3]} 27... Rxd8 {[%clk 0:00:29.1]} 28.
Rd1 {[%clk 0:00:04.2]} 28... Rxd1 {[%clk 0:00:28.7]} 29. Qxd1 {[%clk 0:00:05]}
29... Qe1+ {[%clk 0:00:29.2]} 0-1